bitfinex/quotes_SOLUSD_20251228
["timestamp","ask_amount","ask_price","bid_price","bid_amount"]
[1766941577209,0.9,124.64,124.61,23.25494419]
[1766941622676,0.9,124.64,124.61,43.31753948]
[1766941624072,0.9,124.64,124.61,8.59494419]
[1766941627485,0.9,124.64,124.61,11.89564556]
[1766941627787,1.30237517,124.63,124.61,11.89564556]
[1766941628084,0.9,124.64,124.61,11.89564556]
[1766941630288,0.9,124.64,124.61,11.32564556]
[1766941630475,0.9,124.64,124.62,11.89473937]
[1766941631085,1e-08,124.64,124.63,0.57]
[1766941631266,1e-08,124.64,124.63,3.87070137]
[1766941631465,1e-08,124.64,124.63,0.57]
[1766941632083,1e-08,124.64,124.63,3.87070137]
[1766941633692,1e-08,124.64,124.63,3.30070137]
[1766941635693,1e-08,124.64,124.62,11.89473937]
[1766941638690,1e-08,124.64,124.63,3.30070137]
[1766941642296,1e-08,124.64,124.63,11.32445167]
[1766941649888,0.87,124.69,124.65,0.57]
[1766941650076,0.87,124.69,124.67,3.30070137]
[1766941650889,1e-08,124.7,124.68,3.30070137]
[1766941651093,1e-08,124.7,124.69,3.30070137]
[1766941651291,1e-08,124.71,124.69,4.01070137]
[1766941651499,1e-08,124.71,124.7,3.30070137]
[1766941651908,1e-08,124.71,124.7,11.31994756]
[1766941654580,1e-08,124.71,124.7,3.30070137]
[1766941654784,1e-08,124.71,124.69,12.03036909]
[1766941654994,0.67000001,124.71,124.69,12.03036909]
[1766941656984,0.67000001,124.71,124.7,3.30070137]
[1766941657187,0.67000001,124.71,124.69,8.72966772]
[1766941657188,0.67000001,124.71,124.67,8.7308359]
[1766941657395,0.67000001,124.71,124.67,12.03153727]
[1766941658001,0.67,124.69,124.66,23.39158327]
[1766941658208,0.67,124.69,124.66,26.69228464]
[1766941659892,0.67,124.69,124.66,23.39158327]
[1766941663008,0.67,124.69,124.66,22.68158327]
[1766941663209,0.67,124.69,124.67,0.71]
[1766941672324,0.67,124.69,124.67,8.73114886]
[1766941673318,0.67,124.69,124.67,8.02114886]
[1766941677520,0.67,124.69,124.67,11.32185023]
[1766941678629,1e-08,124.71,124.69,0.69]
[1766941678802,1e-08,124.71,124.7,3.99070137]
[1766941679306,1e-08,124.71,124.7,12.00994756]
[1766941680228,1e-08,124.71,124.7,11.31994756]
[1766941680820,1e-08,124.71,124.7,12.00994756]
[1766941684512,1e-08,124.71,124.7,10.81862077]
[1766941687334,1e-08,124.71,124.7,10.12862077]
[1766941689637,1e-08,124.71,124.7,24.78862077]
[1766941691437,1e-08,124.74,124.7,46.94611082]
[1766941691734,0.2,124.76,124.74,0.69]
[1766941692029,0.2,124.76,124.75,0.69]
[1766941692932,0.2,124.76,124.75,2.79937458]
[1766941693436,1e-08,124.76,124.75,10.81540664]
[1766941694233,1e-08,124.77,124.75,10.12540664]
[1766941694538,1e-08,124.77,124.76,2.10937458]
[1766941694715,1e-08,124.77,124.75,10.81540664]
[1766941695118,1e-08,124.77,124.76,0.72]
[1766941695321,1e-08,124.77,124.76,2.82937458]
[1766941695517,1e-08,124.77,124.76,10.84476412]
[1766941699524,1e-08,124.77,124.76,8.73538954]
[1766941700340,0.68000001,124.77,124.74,0.72]
[1766941700539,0.68000001,124.77,124.72,10.84698242]
[1766941700540,0.68,124.76,124.72,10.84698242]
[1766941700744,0.68,124.75,124.72,25.48698242]
[1766941701043,0.68,124.75,124.73,0.72]
[1766941701636,0.68,124.75,124.73,8.73721161]
[1766941706249,0.68,124.75,124.72,22.65767153]
[1766941707153,0.68,124.75,124.72,23.37767153]
[1766941707654,0.68,124.75,124.72,8.73767153]
[1766941709556,0.68,124.75,124.72,10.84704611]
[1766941710031,0.68,124.75,124.73,10.84652775]
[1766941710236,1e-08,124.77,124.74,2.82937458]
[1766941711554,1e-08,124.77,124.74,10.84574068]
[1766941711750,1e-08,124.77,124.75,2.10937458]
[1766941711956,1e-08,124.77,124.74,10.84574068]
[1766941715450,1e-08,124.77,124.74,8.7363661]
[1766941717059,1e-08,124.77,124.75,0.72]
[1766941718756,1e-08,124.77,124.74,8.0163661]
[1766941718968,1e-08,124.77,124.74,8.7363661]
[1766941726162,0.71000001,124.77,124.74,8.7363661]
[1766941729462,1e-08,124.77,124.75,0.68]
[1766941731371,1e-08,124.77,124.74,10.78574068]
[1766941732463,0.72000001,124.77,124.74,10.78574068]
[1766941732762,0.72000001,124.77,124.74,8.6763661]
[1766941734268,0.72000001,124.77,124.74,0.66]
[1766941734564,2.10937458,124.76,124.72,22.6576491]
[1766941734768,2.10937458,124.76,124.72,8.6776491]
[1766941734769,0.72,124.75,124.72,8.6776491]
[1766941735674,2.82937458,124.75,124.72,8.6776491]
[1766941736174,2.82937458,124.75,124.71,8.67838158]
[1766941736175,0.72,124.74,124.71,8.67838158]
[1766941741748,0.72,124.74,124.7,36.7968277]
[1766941741749,2.82937458,124.73,124.69,0.66]
[1766941742058,2.10937458,124.73,124.69,0.66]
[1766941742254,2.10937458,124.73,124.7,8.01921564]
[1766941742255,0.72,124.72,124.7,8.01921564]
[1766941742471,0.72,124.72,124.69,8.67974192]
[1766941742663,0.72,124.72,124.69,8.01974192]
[1766941742966,0.72,124.72,124.7,0.66]
[1766941746663,0.72,124.72,124.69,11.97629135]
[1766941747658,0.72,124.72,124.69,11.31629135]
[1766941747857,0.72,124.72,124.7,0.66]
[1766941749378,0.72,124.72,124.69,11.97629135]
[1766941751786,0.72,124.72,124.69,8.67974192]
[1766941752081,0.72,124.72,124.7,0.66]
[1766941753054,0.72,124.72,124.69,11.97629135]
[1766941760798,0.72,124.72,124.69,8.67974192]
[1766941760967,0.72,124.72,124.69,11.97629135]
[1766941762797,0.72,124.72,124.69,8.66974192]
[1766941762970,0.72,124.72,124.69,11.96629135]
[1766941764794,0.72,124.72,124.69,8.66974192]
[1766941764996,0.72,124.72,124.69,11.96629135]
[1766941769900,0.72,124.72,124.69,8.66974192]
[1766941773603,0.7,124.71,124.69,8.01974192]
[1766941774302,0.7,124.71,124.69,8.66974192]
[1766941775900,0.7,124.74,124.69,8.66974192]
[1766941776084,3.99654943,124.72,124.69,8.66974192]
[1766941777892,0.7,124.72,124.69,8.66974192]
[1766941778100,3.99654943,124.72,124.69,8.66974192]
[1766941778717,0.7,124.69,124.62,0.65]
[1766941778883,0.7,124.69,124.65,0.65]
[1766941778884,3.99654943,124.69,124.65,0.65]
[1766941779288,0.7,124.73,124.69,0.65]
[1766941779488,0.7,124.73,124.69,3.94654943]
[1766941780013,0.7,124.72,124.69,11.96643678]
[1766941781719,0.7,124.72,124.69,8.66988735]
[1766941782521,0.7,124.73,124.7,0.65]
[1766941783014,0.7,124.76,124.71,0.65]
[1766941783197,0.7,124.74,124.71,0.65]
[1766941785297,0.7,124.74,124.71,11.31493269]
[1766941785500,0.7,124.74,124.71,12.00493269]
[1766941786719,0.7,124.74,124.71,8.70838326]
[1766941786917,0.7,124.74,124.71,12.00493269]
[1766941788325,0.7,124.74,124.71,11.31493269]
[1766941788501,0.7,124.74,124.72,0.69]
[1766941791323,3.29654943,124.75,124.72,0.69]
[1766941791525,3.96654943,124.75,124.72,0.69]
[1766941791935,0.67,124.75,124.72,0.69]
[1766941792122,0.67,124.75,124.72,3.29654943]
[1766941792332,0.67,124.76,124.73,3.98654943]
[1766941792627,0.67,124.76,124.74,0.69]
[1766941802841,1e-08,124.77,124.74,3.98654943]
[1766941803338,0.68000001,124.77,124.74,3.98654943]
[1766941805041,0.68000001,124.77,124.74,0.69]
[1766941806239,0.68000001,124.77,124.74,3.98654943]
[1766941806441,1e-08,124.77,124.76,0.72]
[1766941806745,1e-08,124.77,124.76,4.01654943]
[1766941808548,1e-08,124.77,124.76,2.82760359]
[1766941809342,1e-08,124.77,124.76,2.10760359]
[1766941810120,1e-08,124.77,124.76,10.12299313]
[1766941813036,1e-08,124.77,124.76,24.76299313]
[1766941813343,1e-08,124.77,124.76,22.65538954]
[1766941813650,1e-08,124.77,124.76,24.76299313]
[1766941826664,1e-08,124.77,124.76,23.32538954]
[1766941826963,1e-08,124.77,124.76,8.68538954]
[1766941830359,1e-08,124.77,124.76,10.79299313]
[1766941831553,1e-08,124.77,124.76,8.68538954]
[1766941831855,0.66,124.76,124.73,0.67]
[1766941832658,0.66,124.76,124.73,8.68714148]
[1766941834346,0.66,124.75,124.72,8.68777863]
[1766941836974,2.76760359,124.75,124.71,10.12594126]
[1766941837162,2.76760359,124.75,124.71,8.68833767]
[1766941837163,0.66,124.74,124.71,8.68833767]
[1766941837656,0.66,124.74,124.72,0.67]
[1766941840559,1e-08,124.77,124.74,0.67]
[1766941840860,1e-08,124.77,124.74,2.77760359]
[1766941841635,1e-08,124.77,124.74,10.79397783]
[1766941844078,1e-08,124.77,124.75,2.10760359]
[1766941848364,1e-08,124.77,124.75,2.75760359]
[1766941850672,1e-08,124.77,124.75,0.65]
[1766941861681,1e-08,124.77,124.75,8.01583796]
[1766941861882,1e-08,124.77,124.76,2.10760359]
[1766941864766,1e-08,124.77,124.75,2.10760359]
[1766941865088,1e-08,124.77,124.76,0.68]
[1766941867779,1e-08,124.77,124.76,8.69538954]
[1766941870385,1e-08,124.77,124.75,8.01555017]
[1766941870574,1e-08,124.77,124.75,0.68]
[1766941884521,1e-08,124.77,124.76,0.67]
[1766941886408,1e-08,124.77,124.75,8.68592255]
[1766941887106,1e-08,124.77,124.75,0.67]
[1766941888205,1e-08,124.77,124.76,0.67]
[1766941892616,1e-08,124.77,124.75,0.67]
[1766941894116,3.29319903,124.77,124.73,8.01698921]
[1766941894305,3.99319902,124.76,124.73,0.67]
[1766941894499,3.99319902,124.76,124.73,8.01728345]
[1766941894695,3.99319902,124.76,124.74,0.67]
[1766941897600,3.29319902,124.75,124.73,0.67]
[1766941898520,3.99319902,124.76,124.73,0.67]
[1766941908124,3.99319902,124.74,124.7,22.65892819]
[1766941908426,3.99319902,124.74,124.71,0.66]
[1766941909411,3.29319902,124.73,124.71,0.66]
[1766941918132,3.99319902,124.74,124.71,0.66]
[1766941925345,3.96319902,124.76,124.72,0.66]
[1766941925528,3.96319903,124.77,124.74,0.66]
[1766941927830,3.29319902,124.76,124.74,0.66]
[1766941928626,2.10893835,124.76,124.74,0.66]
[1766941931259,0.67000001,124.77,124.74,0.66]
[1766941931552,2.10893835,124.76,124.74,0.66]
[1766941933047,2.77893835,124.76,124.73,0.66]
[1766941933245,2.77893835,124.75,124.72,0.66]
[1766941935047,2.10893835,124.74,124.72,0.66]
[1766941937749,2.77893835,124.75,124.72,0.66]
[1766941942157,2.10893835,124.76,124.72,0.66]
[1766941942454,2.81893835,124.76,124.72,0.66]
[1766941943648,2.10893835,124.76,124.72,0.66]
[1766941943854,0.71,124.75,124.72,0.66]
[1766941945364,0.71000001,124.77,124.73,0.72]
[1766941945555,0.71,124.76,124.73,0.72]
[1766941946153,2.81893835,124.76,124.73,0.72]
[1766941960895,0.71,124.76,124.73,0.72]
[1766941961070,2.81893835,124.76,124.73,0.72]
[1766941963572,2.81893835,124.75,124.73,0.72]
[1766941963883,2.10893835,124.75,124.73,0.72]
[1766941964376,1.30237517,124.74,124.73,0.72]
[1766941964981,1.30237517,124.75,124.73,0.72]
[1766941965175,1.30237517,124.74,124.73,0.72]
[1766941965475,2.81893835,124.76,124.73,0.72]
[1766941965677,1.30237517,124.74,124.73,0.72]
[1766941965974,1.30237517,124.75,124.73,0.72]
[1766941966166,1.30237517,124.74,124.73,0.72]
[1766941966676,0.71,124.76,124.73,0.72]
[1766941966884,1.30237517,124.75,124.73,0.72]
[1766941967581,2.81893835,124.76,124.73,0.72]
[1766941967767,0.65237517,124.75,124.73,0.72]
[1766941968774,2.10893836,124.77,124.73,0.72]
[1766941968977,3.09631352,124.76,124.73,0.72]
[1766941974395,0.98737517,124.76,124.73,0.72]
[1766941974607,3.09631352,124.76,124.73,0.72]
[1766941975699,0.98737517,124.76,124.73,0.72]
[1766941990006,4.28274439,124.76,124.73,0.72]
[1766941993124,0.98737517,124.76,124.73,0.72]
[1766941993703,0.32737517,124.76,124.73,0.72]
[1766941994223,3.29536923,124.77,124.73,0.72]
[1766941994428,0.16368759,124.75,124.73,0.72]
[1766941994806,0.16368759,124.76,124.73,0.72]
[1766941995022,0.16368759,124.74,124.73,0.72]
[1766941995217,0.16368759,124.76,124.73,0.72]
[1766941995399,0.16368759,124.74,124.73,0.72]
[1766941995801,4.15905681,124.76,124.73,0.72]
[1766941996820,0.08368759,124.75,124.73,0.72]
[1766942007643,0.00368759,124.75,124.74,0.66]
[1766942007939,0.00368759,124.75,124.74,3.95536922]
[1766942008117,1e-08,124.77,124.75,0.66]
[1766942008523,1e-08,124.77,124.76,0.66]
[1766942062683,0.69,124.76,124.72,0.7]
[1766942062889,2.7980644,124.75,124.72,0.7]
[1766942063569,1e-08,124.77,124.73,2.1080644]
[1766942063775,1e-08,124.77,124.74,0.7]
[1766942066193,0.69000001,124.77,124.74,0.7]
[1766942067495,1e-08,124.77,124.74,0.7]
[1766942067692,1e-08,124.77,124.75,0.7]
[1766942069097,1e-08,124.77,124.76,0.7]
[1766942076112,1e-08,124.77,124.75,8.7156865]
[1766942076399,1e-08,124.77,124.75,8.0156865]
[1766942076605,1e-08,124.77,124.76,0.7]
[1766942099118,104.99806442,124.8,124.76,0.7]
[1766942101012,102.89000002,124.8,124.76,0.7]
[1766942101232,2.4380644,124.83,124.78,2.7880644]
[1766942101431,2.1080644,124.83,124.8,0.68]
[1766942101799,0.33,124.82,124.8,0.68]
[1766942102011,0.33,124.82,124.79,0.68]
[1766942103518,2.4380644,124.8,124.77,0.68]
[1766942104999,2.1080644,124.79,124.77,0.68]
[1766942109737,2.1080644,124.78,124.77,0.68]
[1766942110537,3.29439278,124.78,124.77,0.68]
[1766942111342,3.29439278,124.79,124.77,0.68]
[1766942116231,0.33,124.8,124.77,0.68]
[1766942116408,3.62439278,124.8,124.77,0.68]
[1766942118527,0.33,124.8,124.77,0.68]
[1766942124939,3.62439278,124.8,124.77,0.68]
[1766942128523,0.33,124.8,124.77,0.68]
[1766942146851,3.62439278,124.82,124.79,0.69]
[1766942149957,3.29439278,124.81,124.79,0.69]
[1766942150168,3.62439278,124.8,124.77,0.69]
[1766942150341,3.29439278,124.78,124.77,0.69]
[1766942151150,3.29439278,124.78,124.76,0.65]
[1766942156672,3.62439278,124.79,124.76,0.65]
[1766942169283,0.33,124.79,124.76,0.65]
[1766942169483,3.62439278,124.79,124.76,0.65]
[1766942172492,2.43808411,124.79,124.76,0.65]
[1766942177476,0.33,124.79,124.76,0.65]
[1766942177674,2.43808411,124.79,124.76,0.65]
[1766942182891,0.33,124.79,124.76,0.65]
[1766942183078,2.43808411,124.79,124.76,0.65]
[1766942183891,8.01153661,124.82,124.76,0.65]
[1766942184194,2.43808411,124.81,124.77,0.71]
[1766942184893,0.33,124.8,124.77,0.71]
[1766942189898,2.43808411,124.8,124.77,0.71]
[1766942196200,2.43808411,124.81,124.77,0.71]
[1766942199099,2.10808411,124.8,124.77,0.71]
[1766942200504,8.01180034,124.82,124.77,0.71]
[1766942200706,2.10808411,124.82,124.78,0.71]
[1766942201190,2.10808411,124.82,124.79,0.71]
[1766942210019,2.43808411,124.83,124.79,0.71]
[1766942213923,2.10808411,124.82,124.79,0.71]
[1766942214124,0.33,124.83,124.79,0.71]
[1766942214330,2.10808411,124.82,124.79,0.71]
[1766942216543,2.10808411,124.82,124.79,8.0134443]
[1766942216841,2.10808411,124.82,124.8,0.68]
[1766942222040,2.10808411,124.83,124.81,0.68]
[1766942222253,2.53808411,124.84,124.81,0.68]
[1766942225037,0.43,124.84,124.81,0.68]
[1766942226556,2.53808411,124.84,124.81,0.68]
[1766942227658,0.43,124.84,124.82,0.68]
[1766942227834,2.53808411,124.84,124.82,0.68]
[1766942228560,2.20808411,124.84,124.82,0.68]
[1766942229160,0.1,124.84,124.82,0.68]
[1766942229638,2.20808411,124.84,124.82,0.68]
[1766942232560,3.3911623,124.84,124.82,0.68]
[1766942233157,0.1,124.84,124.82,0.68]
[1766942233360,3.3911623,124.84,124.82,0.68]
[1766942235563,0.1,124.84,124.82,8.01151449]
[1766942235742,3.2911623,124.86,124.83,0.67]
[1766942237045,3.7211623,124.86,124.83,0.67]
[1766942237253,3.2911623,124.85,124.83,0.67]
[1766942239766,3.7211623,124.86,124.83,0.67]
[1766942239956,0.43,124.86,124.83,0.67]
[1766942240159,3.7211623,124.86,124.83,0.67]
[1766942241670,0.43,124.86,124.83,0.67]
[1766942241874,3.7211623,124.86,124.83,0.67]
[1766942242043,3.2911623,124.86,124.83,0.67]
[1766942243174,0.43,124.87,124.83,0.67]
[1766942243471,3.2911623,124.86,124.83,0.67]
[1766942243666,3.2911623,124.87,124.84,0.67]
[1766942243868,3.2911623,124.88,124.85,0.67]
[1766942244055,3.7211623,124.88,124.85,0.67]
[1766942244254,0.43,124.88,124.85,0.67]
[1766942244455,3.7211623,124.88,124.85,0.67]
[1766942245154,0.43,124.88,124.85,0.67]
[1766942245567,3.7211623,124.88,124.85,0.67]
[1766942247366,0.1,124.89,124.84,0.67]
[1766942247367,3.7211623,124.87,124.84,0.67]
[1766942247881,3.7211623,124.86,124.82,0.67]
[1766942248377,3.2911623,124.86,124.84,0.67]
[1766942249349,3.2911623,124.86,124.84,0.619]
[1766942250576,3.7711623,124.86,124.82,8.01098019]
[1766942251253,0.48,124.86,124.83,0.67]
[1766942251456,3.7711623,124.86,124.83,0.67]
[1766942256686,8.4880175,124.88,124.83,0.67]
[1766942256883,0.1,124.89,124.85,3.2911623]
[1766942257188,0.1,124.89,124.86,0.67]
[1766942258202,0.1,124.89,124.87,0.67]
[1766942266997,0.58,124.89,124.87,0.67]
[1766942268407,3.8711623,124.89,124.87,0.67]
[1766942268621,3.8711623,124.89,124.86,0.66]
[1766942275816,0.1,124.89,124.86,0.66]
[1766942280518,0.58,124.89,124.86,0.66]
[1766942284215,3.8711623,124.89,124.86,0.66]
[1766942284420,3.7711623,124.88,124.85,0.68]
[1766942285500,3.2911623,124.88,124.86,0.68]
[1766942286721,3.8711623,124.89,124.86,0.68]
[1766942289820,3.3911623,124.89,124.86,0.68]
[1766942290120,0.48,124.88,124.86,0.68]
[1766942290698,3.8711623,124.89,124.86,0.68]
[1766942292623,2.68473094,124.89,124.86,0.68]
[1766942293726,2.68473094,124.89,124.87,0.68]
[1766942293727,0.1,124.89,124.87,0.68]
[1766942297214,2.20473094,124.89,124.87,0.68]
[1766942297524,2.68473094,124.89,124.86,0.68]
[1766942299430,0.58,124.89,124.86,0.68]
[1766942299729,2.68473094,124.89,124.86,0.68]
[1766942300224,2.20473094,124.89,124.86,0.68]
[1766942302632,0.1,124.89,124.86,0.68]
[1766942302835,2.20473094,124.89,124.86,0.68]
[1766942305849,2.10473094,124.88,124.84,14.64]
[1766942306015,0.1,124.89,124.85,0.68]
[1766942306016,2.58473094,124.87,124.85,0.68]
[1766942306214,2.58473094,124.88,124.85,0.68]
[1766942306513,2.58473094,124.87,124.85,0.68]
[1766942307008,0.48,124.87,124.85,0.68]
[1766942307212,0.48,124.88,124.85,0.68]
[1766942307434,2.68473094,124.89,124.86,0.68]
[1766942307617,0.58,124.89,124.86,0.68]
[1766942307819,0.1,124.89,124.86,0.68]
[1766942309241,2.20473094,124.89,124.86,0.68]
[1766942309910,0.1,124.89,124.86,0.68]
[1766942310317,2.20473094,124.89,124.86,0.68]
[1766942311940,0.1,124.89,124.86,0.68]
[1766942312321,2.20473094,124.89,124.86,0.68]
[1766942314043,0.1,124.89,124.87,0.68]
[1766942315231,2.20473094,124.89,124.87,0.68]
[1766942316147,0.1,124.89,124.87,0.68]
[1766942316350,2.20473094,124.89,124.87,0.68]
[1766942316732,2.68473094,124.89,124.86,0.68]
[1766942319748,2.20473094,124.89,124.86,0.68]
[1766942320852,2.58473094,124.87,124.84,0.68]
[1766942321332,2.58473094,124.87,124.85,0.68]
[1766942321533,2.10473094,124.87,124.85,0.68]
[1766942322434,2.58473094,124.86,124.83,0.68]
[1766942322634,2.10473094,124.84,124.79,0.68]
[1766942322835,2.10473094,124.84,124.81,0.68]
[1766942324160,2.10473094,124.83,124.81,0.68]
[1766942325251,0.48,124.86,124.82,0.67]
[1766942325848,2.10473094,124.84,124.82,0.67]
[1766942327463,2.10473094,124.83,124.8,8.6825883]
[1766942327639,2.10473094,124.82,124.8,0.67]
[1766942328553,2.58473094,124.83,124.8,0.67]
[1766942329547,2.58473094,124.83,124.8,8.68280973]
[1766942330628,0.48,124.83,124.8,8.68280973]
[1766942330848,2.58473094,124.83,124.8,8.68280973]
[1766942331055,0.48,124.84,124.81,0.7]
[1766942331358,2.58473094,124.86,124.83,0.7]
[1766942337066,2.10473094,124.85,124.83,0.7]
[1766942338065,0.48,124.86,124.83,0.7]
[1766942338264,2.10473094,124.85,124.83,0.7]
[1766942340460,2.58473094,124.86,124.84,0.7]
[1766942343168,2.10473094,124.86,124.84,0.7]
[1766942346769,2.10473094,124.85,124.83,0.7]
[1766942352487,3.29032196,124.85,124.83,0.7]
[1766942353767,3.77032196,124.86,124.83,0.7]
[1766942355979,0.48,124.86,124.83,0.7]
[1766942356175,3.77032196,124.86,124.83,0.7]
[1766942356571,3.29032196,124.85,124.83,0.7]
[1766942361477,3.77032196,124.84,124.81,0.72]
[1766942361664,0.48,124.84,124.81,0.72]
[1766942362166,3.29032196,124.83,124.81,0.72]
[1766942363685,3.77032196,124.83,124.81,0.72]
[1766942364487,3.29032196,124.82,124.8,0.72]
[1766942366892,3.77032196,124.83,124.8,0.72]
[1766942369299,0.48,124.83,124.8,0.72]
[1766942369472,3.77032196,124.83,124.8,0.72]
[1766942369872,0.48,124.83,124.8,4.01032196]
[1766942373201,4.66278055,124.85,124.82,3.29032196]
[1766942373376,0.48,124.86,124.84,3.29032196]
[1766942373712,0.48,124.86,124.83,4.01032196]
[1766942382212,0.48,124.86,124.83,0.72]
[1766942382398,0.48,124.86,124.83,4.01032196]
[1766942382708,3.29032196,124.85,124.83,0.72]
[1766942384210,3.77032196,124.86,124.83,0.72]
[1766942386512,3.29032196,124.86,124.83,0.72]
[1766942386687,3.77032196,124.84,124.81,3.94032196]
[1766942388217,3.77032196,124.84,124.81,0.65]
[1766942390912,3.77032196,124.83,124.8,0.65]
[1766942391112,3.77032196,124.82,124.8,0.65]
[1766942391496,3.29032196,124.82,124.78,8.7040383]
[1766942391818,3.77032196,124.81,124.78,0.69]
[1766942392514,0.48,124.81,124.78,11.99419421]
[1766942393620,3.29032196,124.81,124.78,8.01387225]
[1766942393822,3.77032196,124.79,124.76,8.70536344]
[1766942394419,3.29032196,124.78,124.76,0.69]
[1766942395021,3.29032196,124.78,124.74,11.30696414]
[1766942395225,14.64,124.78,124.72,0.69]
[1766942395397,3.77032196,124.77,124.73,3.98032196]
[1766942395598,3.77032196,124.77,124.74,0.69]
[1766942395599,0.48,124.77,124.74,0.69]
[1766942397409,3.77032196,124.77,124.74,0.69]
[1766942399010,3.77032196,124.76,124.73,0.69]
[1766942403232,0.48,124.76,124.73,0.69]
[1766942403420,3.77032196,124.76,124.73,0.69]
[1766942406711,3.29032196,124.76,124.73,0.69]
[1766942408036,7.47559588,124.77,124.73,0.69]
[1766942408741,7.95559588,124.77,124.73,0.69]
[1766942409333,0.68,124.79,124.74,0.69]
[1766942409525,0.68,124.79,124.75,0.69]
[1766942409723,3.97032196,124.79,124.75,0.69]
[1766942412435,3.97032196,124.79,124.75,8.70562798]
[1766942412736,3.97032196,124.79,124.75,8.01562798]
[1766942413122,3.97032196,124.79,124.76,0.69]
[1766942413712,0.68,124.79,124.76,8.01538548]
[1766942413929,0.68,124.79,124.77,0.69]
[1766942415746,2.7878041,124.79,124.77,0.69]
[1766942415930,2.7878041,124.79,124.76,0.71]
[1766942419355,2.7878041,124.79,124.76,8.72511668]
[1766942422443,0.69,124.78,124.76,8.72511668]
[1766942423059,2.7978041,124.79,124.76,8.72511668]
[1766942425158,0.69,124.79,124.76,8.72511668]
[1766942426160,0.69,124.79,124.76,8.01511668]
[1766942426362,0.69,124.79,124.76,8.72511668]
[1766942437759,0.69,124.77,124.75,8.72599992]
[1766942437958,5.341365,124.8,124.73,0.71]
[1766942437959,2.1078041,124.76,124.73,0.71]
[1766942438260,2.7978041,124.75,124.72,8.72763266]
[1766942438456,2.7978041,124.74,124.72,0.71]
[1766942439071,2.1078041,124.73,124.71,0.2]
[1766942439265,2.1078041,124.73,124.71,0.91]
[1766942440064,2.1078041,124.74,124.71,0.91]
[1766942441172,2.7978041,124.74,124.71,0.91]
[1766942444587,2.1078041,124.73,124.71,0.2]
[1766942444751,2.7978041,124.72,124.71,0.2]
[1766942445383,0.69,124.73,124.71,0.2]
[1766942445765,2.7978041,124.73,124.71,0.2]
[1766942447087,2.7978041,124.73,124.71,0.86]
[1766942447582,2.7978041,124.73,124.71,0.2]
[1766942448187,10.12407366,124.75,124.71,0.2]
[1766942448188,2.7978041,124.72,124.71,0.2]
[1766942448389,2.7978041,124.72,124.7,0.2]
[1766942448578,2.1078041,124.71,124.7,0.2]
[1766942449190,2.7978041,124.71,124.7,0.2]
[1766942453590,0.69,124.71,124.7,0.2]
[1766942453771,30.47360154,124.78,124.7,0.2]
[1766942453970,30.47360154,124.78,124.71,0.67]
[1766942454280,2.8078041,124.75,124.72,0.67]
[1766942456495,2.1078041,124.74,124.72,0.67]
[1766942460795,2.8078041,124.74,124.72,0.67]
[1766942461103,2.8078041,124.73,124.71,0.67]
[1766942461277,2.1078041,124.72,124.71,0.67]
[1766942461598,2.8078041,124.73,124.71,0.67]
[1766942461798,0.7,124.73,124.71,0.67]
[1766942462485,0.7,124.73,124.7,8.88907322]
[1766942462681,2.8078041,124.73,124.7,0.87]
[1766942462883,0.7,124.73,124.7,2.3078041]
[1766942463085,0.7,124.76,124.73,0.67]